Workbook

Sheet Sheet1
E1: 1.主动 2.被动 | F1: 该技能最多可升级到多少级 | G1: 技能1级所需的人物等级 | H1: 技能1级关联的效果 | I1: 技能1级关联的被动效果
C3: 编号 | D3: 技能名称 | E3: 施放类型 | F3: 等级上限 | G3: 一级解锁等级 | H3: 一级效果 | I3: 一级被动效果 | J3: 二级解锁等级 | K3: 二级效果 | L3: 二级被动效果 | M3: 三级解锁等级 | N3: 三级效果 | O3: 三级被动效果 | P3: 四级解锁等级 | Q3: 四级效果 | R3: 四级被动效果 | S3: 五级解锁等级 | T3: 五级效果 | U3: 五级被动效果 | V3: 六级解锁等级 | W3: 六级效果 | X3: 六级被动效果 | Y3: 七级解锁等级 | Z3: 七级效果 | AA3: 七级被动效果 | AB3: 八级解锁等级 | AC3: 八级效果 | AD3: 八级被动效果 | AE3: 九级解锁等级 | AF3: 九级效果 | AG3: 九级被动效果 | AH3: 十级解锁等级 | AI3: 十级效果 | AJ3: 十级被动效果 | AK3: 技能动作 | AL3: 技能图标 | AM3: 技能描述
C4: Id | D4: Name | E4: Type | F4: LevelCap | G4: UnlockOne | H4: EffectOne | I4: PassiveEffectOne | J4: UnlockTwo | K4: EffectTwo | L4: PassiveEffectTwo | M4: UnlockThree | N4: EffectThree | O4: PassiveEffectThree | P4: UnlockFour | Q4: EffectFour | R4: PassiveEffectFour | S4: UnlockFive | T4: EffectFive | U4: PassiveEffectFive | V4: UnlockSix | W4: EffectSix | X4: PassiveEffectSix | Y4: UnlockSeven | Z4: EffectSeven | AA4: PassiveEffectSeven | AB4: UnlockEight | AC4: EffectEight | AD4: PassiveEffectEight | AE4: UnlockNine | AF4: EffectNine | AG4: PassiveEffectNine | AH4: UnlockTen | AI4: EffectTen | AJ4: PassiveEffectTen | AK4: Action | AL4: Icon | AM4: Describe
C5: int | D5: string | E5: int | F5: int | G5: int | H5: int | I5: int | J5: int | K5: int | L5: int | M5: int | N5: int | O5: int | P5: int | Q5: int | R5: int | S5: int | T5: int | U5: int | V5: int | W5: int | X5: int | Y5: int | Z5: int | AA5: int | AB5: int | AC5: int | AD5: int | AE5: int | AF5: int | AG5: int | AH5: int | AI5: int | AJ5: int | AK5: string | AL5: string | AM5: string
C6: 1001 | E6: 1 | F6: 10 | G6: 1 | H6: 1001 | I6: 0 | J6: =G6+1 -> 2 | K6: 1002 | L6: 0 | M6: =J6+1 -> 3 | N6: 1003 | O6: 0 | P6: =M6+1 -> 4 | Q6: =N6+1 -> 1004 | R6: 0 | S6: =P6+1 -> 5 | T6: =Q6+1 -> 1005 | U6: 0 | V6: =S6+1 -> 6 | W6: =T6+1 -> 1006 | X6: 0 | Y6: =V6+1 -> 7 | Z6: =W6+1 -> 1007 | AA6: 0 | AB6: =Y6+1 -> 8 | AC6: =Z6+1 -> 1008 | AD6: 0 | AE6: =AB6+1 -> 9 | AF6: =AC6+1 -> 1009 | AG6: 0 | AH6: =AE6+1 -> 10 | AI6: =AF6+1 -> 1010 | AJ6: 0 | AM6: 显示技能详细描述
C7: 1002 | E7: 1 | F7: 10 | G7: 2 | H7: =H6+10 -> 1011 | I7: 0 | J7: =G7+1 -> 3 | K7: =K6+10 -> 1012 | L7: 0 | M7: 4 | N7: =N6+10 -> 1013 | O7: 0 | P7: 5 | Q7: =Q6+10 -> 1014 | R7: 0 | S7: 6 | T7: =T6+10 -> 1015 | U7: 0 | V7: 7 | W7: =W6+10 -> 1016 | X7: 0 | Y7: 8 | Z7: =Z6+10 -> 1017 | AA7: 0 | AB7: 9 | AC7: =AC6+10 -> 1018 | AD7: 0 | AE7: 10 | AF7: =AF6+10 -> 1019 | AG7: 0 | AH7: 11 | AI7: =AI6+10 -> 1020 | AJ7: 0 | AM7: 显示技能详细描述
C8: 1003 | E8: 1 | F8: 10 | G8: 3 | H8: =H7+10 -> 1021 | I8: 0 | J8: 4 | K8: =K7+10 -> 1022 | L8: 0 | M8: 5 | N8: =N7+10 -> 1023 | O8: 0 | P8: 6 | Q8: =Q7+10 -> 1024 | R8: 0 | S8: 7 | T8: =T7+10 -> 1025 | U8: 0 | V8: 8 | W8: =W7+10 -> 1026 | X8: 0 | Y8: 9 | Z8: =Z7+10 -> 1027 | AA8: 0 | AB8: 10 | AC8: =AC7+10 -> 1028 | AD8: 0 | AE8: 11 | AF8: =AF7+10 -> 1029 | AG8: 0 | AH8: 12 | AI8: =AI7+10 -> 1030 | AJ8: 0 | AM8: 显示技能详细描述
C9: 1004 | E9: 1 | F9: 10 | G9: 4 | H9: 1031 | I9: 0 | J9: 5 | K9: 1032 | L9: 0 | M9: 6 | N9: 1033 | O9: 0 | P9: 7 | Q9: 1034 | R9: 0 | S9: 8 | T9: 1035 | U9: 0 | V9: 9 | W9: 1036 | X9: 0 | Y9: 10 | Z9: 1037 | AA9: 0 | AB9: 11 | AC9: 1038 | AD9: 0 | AE9: 12 | AF9: 1039 | AG9: 0 | AH9: 13 | AI9: 1040 | AJ9: 0 | AM9: 显示技能详细描述
C10: 1005 | E10: 1 | F10: 10 | G10: 1 | H10: 1041 | I10: 0 | J10: 2 | K10: 1042 | L10: 0 | M10: 3 | N10: 1043 | O10: 0 | P10: 4 | Q10: 1044 | R10: 0 | S10: 5 | T10: 1045 | U10: 0 | V10: 6 | W10: 1046 | X10: 0 | Y10: 7 | Z10: 1047 | AA10: 0 | AB10: 8 | AC10: 1048 | AD10: 0 | AE10: 9 | AF10: 1049 | AG10: 0 | AH10: 10 | AI10: 1050 | AJ10: 0 | AM10: 显示技能详细描述
C11: 1006 | E11: 1 | F11: 10 | G11: 2 | H11: 1051 | I11: 0 | J11: 3 | K11: 1052 | L11: 0 | M11: 4 | N11: 1053 | O11: 0 | P11: 5 | Q11: 1054 | R11: 0 | S11: 6 | T11: 1055 | U11: 0 | V11: 7 | W11: 1056 | X11: 0 | Y11: 8 | Z11: 1057 | AA11: 0 | AB11: 9 | AC11: 1058 | AD11: 0 | AE11: 10 | AF11: 1059 | AG11: 0 | AH11: 11 | AI11: 1060 | AJ11: 0 | AM11: 显示技能详细描述
C12: 1007 | E12: 1 | F12: 10 | G12: 3 | H12: 1061 | I12: 0 | J12: 4 | K12: 1062 | L12: 0 | M12: 5 | N12: 1063 | O12: 0 | P12: 6 | Q12: 1064 | R12: 0 | S12: 7 | T12: 1065 | U12: 0 | V12: 8 | W12: 1066 | X12: 0 | Y12: 9 | Z12: 1067 | AA12: 0 | AB12: 10 | AC12: 1068 | AD12: 0 | AE12: 11 | AF12: 1069 | AG12: 0 | AH12: 12 | AI12: 1070 | AJ12: 0 | AM12: 显示技能详细描述
C13: 1008 | E13: 1 | F13: 10 | G13: 4 | H13: 1071 | I13: 0 | J13: 5 | K13: 1072 | L13: 0 | M13: 6 | N13: 1073 | O13: 0 | P13: 7 | Q13: 1074 | R13: 0 | S13: 8 | T13: 1075 | U13: 0 | V13: 9 | W13: 1076 | X13: 0 | Y13: 10 | Z13: 1077 | AA13: 0 | AB13: 11 | AC13: 1078 | AD13: 0 | AE13: 12 | AF13: 1079 | AG13: 0 | AH13: 13 | AI13: 1080 | AJ13: 0 | AM13: 显示技能详细描述

Sheet Sheet2

Sheet Sheet3
